lending/lending_fUSD_20250516
["ID","MTS","AMOUNT","RATE_DAILY","PERIOD"]
[361300447,1747436957446,-375.0,0.00016432,2]
[361300448,1747436957468,-375.0,0.00016432,2]
[361300449,1747436957491,-342.766,0.00016437,2]
[361300450,1747436957511,-619.0,0.00016438,2]
[361300451,1747436957531,-169.84348333,0.00016438,2]
[361300452,1747436957553,-418.24143918,0.00016438,2]
[361300453,1747436957573,-400.0,0.00016438,2]
[361300454,1747436957593,-400.0,0.00016438,2]
[361300455,1747436957614,-651.38,0.00016438,2]
[361300456,1747436957635,-400.0,0.00016438,2]
[361300457,1747436957656,-400.0,0.00016438,2]
[361300458,1747436957678,-400.0,0.00016438,2]
[361300459,1747436957698,-607.01,0.00016438,2]
[361300460,1747436957718,-551.35,0.00016438,2]
[361300461,1747436957741,-400.0,0.00016438,2]
[361300462,1747436957761,-400.0,0.00016438,2]
[361300463,1747436957781,-400.0,0.00016438,2]
[361300464,1747436957801,-400.0,0.00016438,2]
[361300465,1747436957822,-400.0,0.00016438,2]
[361300466,1747436957842,-400.0,0.00016438,2]
[361300467,1747436957861,-400.0,0.00016438,2]
[361300468,1747436957882,-364.13408982,0.00016438,2]
[361300469,1747436958700,-35.86591018,0.00016438,2]
[361300470,1747436958726,-400.0,0.00016438,2]
[361300471,1747436958749,-464.03,0.00016438,2]
[361300472,1747436958773,-400.0,0.00016438,2]
[361300473,1747436958806,-183.75993526,0.00016438,2]
[361300474,1747436958829,-400.0,0.00016438,2]
[361300475,1747436958852,-771.29,0.00016438,2]
[361300476,1747436958877,-553.16,0.00016438,2]
[361300477,1747436958901,-406.45,0.00016438,2]
[361300478,1747436958926,-530.9,0.00016438,2]
[361300479,1747436958951,-400.0,0.00016438,2]
[361300480,1747436958983,-786.88,0.00016438,2]
[361300481,1747436959010,-400.0,0.00016438,2]
[361300482,1747436959041,-400.0,0.00016438,2]
[361300483,1747436959068,-400.0,0.00016438,2]
[361300484,1747436959094,-400.0,0.00016438,2]
[361300485,1747436959121,-400.0,0.00016438,2]
[361300486,1747436959147,-484.11755892,0.00016438,2]
[361300487,1747436959174,-171.52696216,0.00016438,2]
[361300488,1747436959200,-400.0,0.00016438,2]
[361300489,1747436959229,-400.0,0.00016438,2]
[361300490,1747436959255,-400.0,0.00016438,2]
[361300491,1747436959280,-400.0,0.00016438,2]
[361300492,1747436959306,-412.01963348,0.00016438,2]
[361300493,1747436959451,-13.35036652,0.00016438,2]
[361300494,1747436959495,-600.73,0.00016438,2]
[361300495,1747436959527,-400.0,0.00016438,2]
[361300496,1747436959556,-400.0,0.00016438,2]
[361300497,1747436959585,-400.0,0.00016438,2]
[361300498,1747436959611,-508.03749577,0.00016438,2]
[361300499,1747436959637,-400.0,0.00016438,2]
[361300500,1747436959664,-400.0,0.00016438,2]
[361300501,1747436959691,-367.01572885,0.00016438,2]
[361300502,1747436959717,-734.35,0.00016438,2]
[361300503,1747436959742,-511.17,0.00016438,2]
[361300504,1747436959767,-400.0,0.00016438,2]
[361300505,1747436959793,-400.0,0.00016438,2]
[361300506,1747436959820,-397.32451298,0.00016438,2]
[361300507,1747436959846,-400.0,0.00016438,2]
[361300508,1747436959873,-400.0,0.00016438,2]
[361300509,1747436959899,-510.97,0.00016438,2]
[361300510,1747436959924,-592.81,0.00016438,2]
[361300511,1747436959949,-400.0,0.00016438,2]
[361300512,1747436959973,-400.0,0.00016438,2]
[361300513,1747436960001,-400.0,0.00016438,2]
[361300514,1747436960025,-500.0,0.00016438,2]
[361300515,1747436960049,-454.91,0.00016438,2]
[361300516,1747436960074,-9.33189588,0.00016438,2]
[361300517,1747436960650,-390.66810412,0.00016438,2]
[361300518,1747436960676,-556.53,0.00016438,2]
[361300519,1747436960701,-400.0,0.00016438,2]
[361300520,1747436960725,-402.40726921,0.00016438,2]
[361300521,1747436960749,-400.0,0.00016438,2]
[361300522,1747436960773,-400.0,0.00016438,2]
[361300523,1747436960796,-400.0,0.00016438,2]
[361300524,1747436960820,-500.0,0.00016438,2]
[361300525,1747436960845,-500.0,0.00016438,2]
[361300526,1747436960867,-500.0,0.00016438,2]
[361300527,1747436960890,-500.0,0.00016438,2]
[361300528,1747436960914,-400.0,0.00016438,2]
[361300529,1747436960938,-400.0,0.00016438,2]
[361300530,1747436960961,-400.0,0.00016438,2]
[361300531,1747436960987,-401.20735324,0.00016438,2]
[361300532,1747436961011,-540.75,0.00016438,2]
[361300533,1747436961038,-400.0,0.00016438,2]
[361300534,1747436961064,-985.93,0.00016438,2]
[361300535,1747436961089,-400.0,0.00016438,2]
[361300536,1747436961112,-500.0,0.00016438,2]
[361300537,1747436961136,-622.50727343,0.00016438,2]
[361300538,1747436961206,-112.57272657,0.00016438,2]
[361300539,1747436961231,-400.0,0.00016438,2]
[361300540,1747436961255,-400.67326916,0.00016438,2]
[361300541,1747436961279,-400.0,0.00016438,2]
[361300542,1747436961304,-400.0,0.00016438,2]
[361300543,1747436961329,-624.87,0.00016438,2]
[361300544,1747436961353,-768.43,0.00016438,2]
[361300545,1747436961377,-764.86,0.00016438,2]
[361300546,1747436961399,-400.0,0.00016438,2]
[361300547,1747436961422,-404.96305498,0.00016438,2]
[361300548,1747436961445,-400.0,0.00016438,2]
[361300549,1747436961469,-501.21935947,0.00016438,2]
[361300550,1747436961492,-400.0,0.00016438,2]
[361300551,1747436961514,-400.0,0.00016438,2]
[361300552,1747436961538,-400.0,0.00016438,2]
[361300553,1747436961563,-400.0,0.00016438,2]
[361300554,1747436961586,-400.0,0.00016438,2]
[361300555,1747436961610,-400.0,0.00016438,2]
[361300556,1747436961633,-451.41896647,0.00016438,2]
[361300557,1747436962396,-400.0,0.00016438,2]
[361300558,1747436962418,-350.28521154,0.00016438,2]
[361300559,1747436962439,-400.0,0.00016438,2]
[361300560,1747436962460,-400.0,0.00016438,2]
[361300561,1747436962487,-20.70741181,0.00016438,2]
[361300562,1747436966032,-379.29258819,0.00016438,2]
[361300563,1747436966056,-635.42,0.00016438,2]
[361300564,1747436966079,-400.0,0.00016438,2]
[361300565,1747436966100,-400.0,0.00016438,2]
[361300566,1747436966121,-400.0,0.00016438,2]
[361300567,1747436966143,-500.0,0.00016438,2]
[361300568,1747436966164,-425.89,0.00016438,2]
[361300569,1747436966187,-400.0,0.00016438,2]
[361300570,1747436966209,-238.84541832,0.00016438,2]
[361300571,1747436966231,-400.0,0.00016438,2]
[361300572,1747436966254,-500.0,0.00016438,2]
[361300573,1747436966276,-400.0,0.00016438,2]
[361300574,1747436966297,-400.0,0.00016438,2]
[361300575,1747436966318,-400.0,0.00016438,2]
[361300576,1747436966340,-891.86,0.00016438,2]
[361300577,1747436966361,-625.48,0.00016438,2]
[361300578,1747436966382,-400.0,0.00016438,2]
[361300579,1747436966403,-654.83,0.00016438,2]
[361300580,1747436966425,-372.31803634,0.00016438,2]
[361300581,1747436966446,-496.61,0.00016438,2]
[361300582,1747436966469,-409.4785293,0.00016438,2]
[361300583,1747436966491,-269.97542785,0.00016438,2]
[361300584,1747436970200,-130.02457215,0.00016438,2]
[361300585,1747436970221,-883.57,0.00016438,2]
[361300586,1747436970243,-400.0,0.00016438,2]
[361300587,1747436970264,-400.0,0.00016438,2]
[361300588,1747436970284,-519.36,0.00016438,2]
[361300589,1747436970304,-500.0,0.00016438,2]
[361300590,1747436970325,-500.0,0.00016438,2]
[361300591,1747436970345,-500.0,0.00016438,2]
[361300592,1747436970365,-565.52372825,0.00016438,2]
[361300593,1747436970388,-842.27,0.00016438,2]
[361300594,1747436970408,-400.0,0.00016438,2]
[361300595,1747436970428,-1903.98,0.00016438,2]
[361300596,1747436970448,-400.0,0.00016438,2]
[361300597,1747436970468,-450.54232072,0.00016438,2]
[361300598,1747436970489,-400.0,0.00016438,2]
[361300599,1747436970510,-420.68,0.00016438,2]
[361300600,1747436970530,-400.0,0.00016438,2]
[361300601,1747436970550,-384.04937888,0.00016438,2]
[361300602,1747436970593,-471.67,0.00013776,2]
[361300603,1747436970613,-15.95062112,0.00016438,2]
[361300604,1747436970633,-404.52,0.00016438,2]
[361300605,1747436970652,-400.0,0.00016438,2]
[361300606,1747436970672,-400.0,0.00016438,2]
[361300607,1747436970692,-400.0,0.00016438,2]
[361300608,1747436970713,-472.29,0.00016438,2]
[361300609,1747436970733,-626.75,0.00016438,2]
[361300610,1747436970755,-817.71,0.00016438,2]
[361300611,1747436970775,-425.37,0.00016438,2]
[361300612,1747436970795,-400.0,0.00016438,2]
[361300613,1747436970816,-406.49,0.00016438,2]
[361300614,1747436970838,-1416.77,0.00016438,2]
[361300615,1747436970859,-400.0,0.00016438,2]
[361300616,1747436970879,-400.0,0.00016438,2]
[361300617,1747436970899,-2027.75,0.00016438,2]
[361300618,1747436970922,-514.72937888,0.00016438,2]
[361300619,1747436971917,-471.67,0.0001604,2]
[361300620,1747436971939,-550.0,0.00016438,2]
[361300621,1747436971960,-812.72062112,0.00016438,2]
[361300622,1747436971981,-937.55,0.00016438,2]
[361300623,1747436972007,-400.0,0.00016438,2]
[361300624,1747436972027,-401.29,0.00016438,2]
[361300625,1747436972056,-400.0,0.00016438,2]
[361300626,1747436972077,-886.08,0.00016438,2]
[361300627,1747436972097,-400.0,0.00016438,2]
[361300628,1747436972120,-450.55,0.00016438,2]
[361300629,1747436972141,-400.0,0.00016438,2]
[361300630,1747436972162,-400.0,0.00016438,2]
[361300631,1747436972183,-400.0,0.00016438,2]
[361300632,1747436972203,-500.0,0.00016438,2]
[361300633,1747436972225,-500.0,0.00016438,2]
[361300634,1747436972247,-500.0,0.00016438,2]
[361300635,1747436972268,-500.0,0.00016438,2]
[361300636,1747436972291,-400.0,0.00016438,2]
[361300637,1747436972311,-400.0,0.00016438,2]
[361300638,1747436972332,-290.13937888,0.00016438,2]
[361300639,1747436972363,-543.34062112,0.00016438,2]
[361300640,1747436972384,-400.0,0.00016438,2]
[361300641,1747436972404,-458.17921892,0.00016438,2]
[361300642,1747436972424,-400.0,0.00016438,2]
[361300643,1747436972444,-1790.97,0.00016438,2]
[361300644,1747436972464,-400.0,0.00016438,2]
[361300645,1747436972485,-400.0,0.00016438,2]
[361300646,1747436972506,-897.0,0.00016438,2]
[361300647,1747436972526,-400.0,0.00016438,2]
[361300648,1747436972546,-1282.37,0.00016438,2]
[361300649,1747436972566,-400.0,0.00016438,2]
[361300650,1747436972586,-438.92,0.00016438,2]
[361300651,1747436972605,-400.0,0.00016438,2]
[361300652,1747436972626,-1608.34,0.00016438,2]
[361300653,1747436972645,-180.88015996,0.00016438,2]
[361300654,1747436973544,-219.11984004,0.00016438,2]
[361300655,1747436973567,-400.0,0.00016438,2]
[361300656,1747436973588,-2131.71,0.00016438,2]
[361300657,1747436973609,-576.55,0.00016438,2]
[361300658,1747436973631,-480.28,0.00016438,2]
[361300659,1747436973651,-1461.85,0.00016438,2]
[361300660,1747436973671,-791.71,0.00016438,2]
[361300661,1747436973691,-400.0,0.00016438,2]
[361300662,1747436973711,-150.0,0.00016438,2]
[361300663,1747436973732,-400.0,0.00016438,2]
[361300664,1747436973753,-410.19067527,0.00016438,2]
[361300665,1747436973774,-936.15,0.00016438,2]
[361300666,1747436973795,-400.0,0.00016438,2]
[361300667,1747436973816,-400.0,0.00016438,2]
[361300668,1747436973837,-438.45,0.00016438,2]
[361300669,1747436973857,-400.0,0.00016438,2]
[361300670,1747436973878,-3.98948469,0.00016438,2]
[361300671,1747436975695,-412.44051531,0.00016438,2]
[361300672,1747436975717,-1099.08,0.00016438,2]
[361300673,1747436975741,-933.85,0.00016438,2]
[361300674,1747436975766,-853.83,0.00016438,2]
[361300675,1747436975788,-400.0,0.00016438,2]
[361300676,1747436975810,-635.88,0.00016438,2]
[361300677,1747436975831,-400.0,0.00016438,2]
[361300678,1747436975851,-400.0,0.00016438,2]
[361300679,1747436975872,-402.00170471,0.00016438,2]
[361300680,1747436975893,-400.0,0.00016438,2]
[361300681,1747436975915,-400.0,0.00016438,2]
[361300682,1747436975938,-400.0,0.00016438,2]
[361300683,1747436975961,-400.0,0.00016438,2]
[361300684,1747436975983,-500.0,0.00016438,2]
[361300685,1747436976009,-400.0,0.00016438,2]
[361300686,1747436976034,-411.72,0.00016438,2]
[361300687,1747436976056,-400.0,0.00016438,2]
[361300688,1747436976081,-409.64669196,0.00016438,2]
[361300689,1747436976102,-741.55108802,0.00016438,2]
[361300690,1747436976148,-924.10891198,0.00016438,2]
[361300691,1747436976181,-442.92,0.00016438,2]
[361300692,1747436976206,-497.63,0.00016438,2]
[361300693,1747436976228,-400.0,0.00016438,2]
[361300694,1747436976252,-167.55743025,0.00016438,2]
[361300695,1747436976275,-400.0,0.00016438,2]
[361300696,1747436976297,-600.25,0.00016438,2]
[361300697,1747436976319,-500.0,0.00016438,2]
[361300698,1747436976342,-1579.26,0.00016438,2]
[361300699,1747436976364,-634.98,0.00016438,2]
[361300700,1747436976386,-400.0,0.00016438,2]
[361300701,1747436976407,-400.0,0.00016438,2]
[361300702,1747436976428,-543.25,0.00016438,2]
[361300703,1747436976450,-400.0,0.00016438,2]
[361300704,1747436976472,-637.29,0.00016438,2]
[361300705,1747436976493,-400.0,0.00016438,2]
[361300706,1747436976515,-400.0,0.00016438,2]
[361300707,1747436976537,-672.75365777,0.00016438,2]
[361300708,1747436978519,-503.04634223,0.00016438,2]
[361300709,1747436978542,-400.0,0.00016438,2]
[361300710,1747436978563,-400.0,0.00016438,2]
[361300711,1747436978584,-400.0,0.00016438,2]
[361300712,1747436978606,-400.0,0.00016438,2]
[361300713,1747436978628,-400.0,0.00016438,2]
[361300714,1747436978650,-446.18,0.00016438,2]
[361300715,1747436978678,-522.14,0.00016438,2]
[361300716,1747436978699,-400.0,0.00016438,2]
[361300717,1747436978720,-412.74,0.00016438,2]
[361300718,1747436978742,-400.0,0.00016438,2]
[361300719,1747436978763,-400.0,0.00016438,2]
[361300720,1747436978785,-1048.17,0.00016438,2]
[361300721,1747436978807,-722.1,0.00016438,2]
[361300722,1747436978831,-1041.99,0.00016438,2]
[361300723,1747436978852,-155.8591271,0.00016438,2]
[361300724,1747436979387,-999.95,0.00016438,2]
[361300725,1747436979408,-400.0,0.00016438,2]
[361300726,1747436979431,-307.72253798,0.00016438,2]
[361300727,1747436979452,-240.10199269,0.00016438,2]
[361300728,1747436983429,-159.89800731,0.00016438,2]
[361300729,1747436983451,-1184.55,0.00016438,2]
[361300730,1747436983471,-400.0,0.00016438,2]
[361300731,1747436983492,-400.0,0.00016438,2]
[361300732,1747436983512,-400.0,0.00016438,2]
[361300733,1747436983535,-400.0,0.00016438,2]
[361300734,1747436983557,-400.0,0.00016438,2]
[361300735,1747436983577,-633.61,0.00016438,2]
[361300736,1747436983598,-796.11,0.00016438,2]
[361300737,1747436983618,-400.0,0.00016438,2]
[361300738,1747436983639,-820.46,0.00016438,2]
[361300739,1747436983660,-400.0,0.00016438,2]
[361300740,1747436983681,-771.96,0.00016438,2]
[361300741,1747436983702,-492.69,0.00016438,2]
[361300742,1747436983791,-462.19,0.00016438,2]
[361300743,1747436983818,-339.78535061,0.00016438,2]
[361300744,1747436983839,-400.0,0.00016438,2]
[361300745,1747436983860,-400.0,0.00016438,2]
[361300746,1747436983884,-642.6,0.00016438,2]
[361300747,1747436983908,-96.14664208,0.00016438,2]
[361300748,1747436983954,-303.85335792,0.00016438,2]
[361300749,1747436983975,-594.23,0.00016438,2]
[361300750,1747436983998,-400.0,0.00016438,2]
[361300751,1747436984020,-400.0,0.00016438,2]
[361300752,1747436984040,-400.0,0.00016438,2]
[361300753,1747436984063,-400.0,0.00016438,2]
[361300754,1747436984083,-400.0,0.00016438,2]
[361300755,1747436984106,-893.59,0.00016438,2]
[361300756,1747436984127,-602.63,0.00016438,2]
[361300757,1747436984147,-400.0,0.00016438,2]
[361300758,1747436984168,-756.97,0.00016438,2]
[361300759,1747436984189,-400.0,0.00016438,2]
[361300760,1747436984209,-883.41,0.00016438,2]
[361300761,1747436984230,-400.0,0.00016438,2]
[361300762,1747436984251,-400.0,0.00016438,2]
[361300763,1747436984272,-635.22,0.00016438,2]
[361300764,1747436984291,-400.0,0.00016438,2]
[361300765,1747436984312,-172.85244818,0.00016438,2]
[361300766,1747436984333,-400.1,0.00016438,2]
[361300767,1747436984353,-400.0,0.00016438,2]
[361300768,1747436984373,-357.1441939,0.00016438,2]
[361300769,1747436984399,-42.8558061,0.00016438,2]
[361300770,1747436984419,-581.0,0.00016438,2]
[361300771,1747436984439,-400.0,0.00016438,2]
[361300772,1747436984463,-400.0,0.00016438,2]
[361300773,1747436984484,-487.07,0.00016438,2]
[361300774,1747436984507,-1012.92,0.00016438,2]
[361300775,1747436984528,-400.0,0.00016438,2]
[361300776,1747436984550,-400.0,0.00016438,2]
[361300777,1747436984572,-400.0,0.00016438,2]
[361300778,1747436984594,-400.0,0.00016438,2]
[361300779,1747436984615,-1042.05,0.00016438,2]
[361300780,1747436984639,-488.77,0.00016438,2]
[361300781,1747436984660,-461.29153724,0.00016438,2]
[361300782,1747436984681,-1542.71,0.00016438,2]
[361300783,1747436984702,-400.0,0.00016438,2]
[361300784,1747436984722,-480.62,0.00016438,2]
[361300785,1747436984743,-889.21,0.00016438,2]
[361300786,1747436984764,-171.50265666,0.00016438,2]
[361300787,1747436984791,-548.08734334,0.00016438,2]
[361300788,1747436984811,-400.0,0.00016438,2]
[361300789,1747436984832,-536.81,0.00016438,2]
[361300790,1747436984855,-817.69,0.00016438,2]
[361300791,1747436984876,-561.28,0.00016438,2]
[361300792,1747436984897,-970.78,0.00016438,2]
[361300793,1747436984918,-400.0,0.00016438,2]
[361300794,1747436984942,-449.55,0.00016438,2]
[361300795,1747436984966,-507.81,0.00016438,2]
[361300796,1747436984988,-400.0,0.00016438,2]
[361300797,1747436985014,-400.0,0.00016438,2]
[361300798,1747436985035,-1148.35,0.00016438,2]
[361300799,1747436985058,-500.92,0.00016438,2]
[361300800,1747436985080,-677.6,0.00016438,2]
[361300801,1747436985101,-500.0,0.00016438,2]
[361300802,1747436985123,-589.28,0.00016438,2]
[361300803,1747436985145,-591.84265666,0.00016438,2]
[361300804,1747436985381,-435.74734334,0.00016438,2]
[361300805,1747436985402,-358.55,0.00016438,2]
[361300806,1747436985422,-400.0,0.00016438,2]
[361300807,1747436985442,-400.0,0.00016438,2]
[361300808,1747436985462,-400.0,0.00016438,2]
[361300809,1747436985482,-400.0,0.00016438,2]
[361300810,1747436985503,-400.0,0.00016438,2]
[361300811,1747436985525,-400.0,0.00016438,2]
[361300812,1747436985547,-400.0,0.00016438,2]
[361300813,1747436985568,-436.69,0.00016438,2]
[361300814,1747436985590,-400.0,0.00016438,2]
[361300815,1747436985612,-1592.48,0.00016438,2]
[361300816,1747436985636,-648.07,0.00016438,2]
[361300817,1747436985660,-400.0,0.00016438,2]
[361300818,1747436985684,-400.0,0.00016438,2]
[361300819,1747436985706,-476.54,0.00016438,2]
[361300820,1747436985728,-400.0,0.00016438,2]
[361300821,1747436985752,-400.0,0.00016438,2]
[361300822,1747436985771,-400.0,0.00016438,2]
[361300823,1747436985793,-644.22,0.00016438,2]
[361300824,1747436985815,-207.70265666,0.00016438,2]
[361300825,1747436985904,19000.00000001,0.00042521,30]
[361300826,1747436988124,-215.65734334,0.00016438,2]
[361300827,1747436988146,-400.0,0.00016438,2]
[361300828,1747436988167,-766.97,0.00016438,2]
[361300829,1747436988187,-400.0,0.00016438,2]
[361300830,1747436988208,-400.0,0.00016438,2]
[361300831,1747436988230,-567.79,0.00016438,2]
[361300832,1747436988254,-400.0,0.00016438,2]
[361300833,1747436988276,-400.0,0.00016438,2]
[361300834,1747436988296,-400.0,0.00016438,2]
[361300835,1747436988317,-400.0,0.00016438,2]
[361300836,1747436988338,-611.66,0.00016438,2]
[361300837,1747436988359,-641.96,0.00016438,2]
[361300838,1747436988380,-400.0,0.00016438,2]
[361300839,1747436988401,-405.56360711,0.00016438,2]
[361300840,1747436988422,-595.13,0.00016438,2]
[361300841,1747436988442,-1046.58,0.00016438,2]
[361300842,1747436988462,-701.29,0.00016438,2]
[361300843,1747436988482,-538.83,0.00016438,2]
[361300844,1747436988502,-430.07,0.00016438,2]
[361300845,1747436988522,-278.49904955,0.00016438,2]
[361300846,1747436988559,-121.50095045,0.00016438,2]
[361300847,1747436988579,-827.69,0.00016438,2]
[361300848,1747436988599,-1241.7,0.00016438,2]
[361300849,1747436988619,-400.0,0.00016438,2]
[361300850,1747436988640,-859.03,0.00016438,2]
[361300851,1747436988662,-421.7,0.00016438,2]
[361300852,1747436988683,-400.0,0.00016438,2]
[361300853,1747436988703,-562.1,0.00016438,2]
[361300854,1747436988723,-1258.68,0.00016438,2]
[361300855,1747436988744,-400.0,0.00016438,2]
[361300856,1747436988766,-400.0,0.00016438,2]
[361300857,1747436988786,-400.0,0.00016438,2]
[361300858,1747436988807,-739.46,0.00016438,2]
[361300859,1747436988827,-400.0,0.00016438,2]
[361300860,1747436988848,-789.7,0.00016438,2]
[361300861,1747436988869,-400.0,0.00016438,2]
[361300862,1747436989047,-378.43904955,0.00016438,2]
[361300863,1747436989109,-21.56095045,0.00016438,2]
[361300864,1747436989130,-454.20651629,0.00016438,2]
[361300865,1747436989152,-400.0,0.00016438,2]
[361300866,1747436989174,-400.0,0.00016438,2]
[361300867,1747436989196,-1208.11,0.00016438,2]
[361300868,1747436989218,-880.08,0.00016438,2]
[361300869,1747436989240,-400.0,0.00016438,2]
[361300870,1747436989263,-785.47,0.00016438,2]
[361300871,1747436989286,-418.67,0.00016438,2]
[361300872,1747436989307,-992.94,0.00016438,2]
[361300873,1747436989329,-400.0,0.00016438,2]
[361300874,1747436989350,-400.0,0.00016438,2]
[361300875,1747436989372,-400.0,0.00016438,2]
[361300876,1747436989394,-550.89,0.00016438,2]
[361300877,1747436989415,-400.0,0.00016438,2]
[361300878,1747436989436,-169.93303285,0.00016438,2]
[361300879,1747436989458,-517.94718911,0.00016438,2]
[361300880,1747436989480,-400.0,0.00016438,2]
[361300881,1747436989501,-400.0,0.00016438,2]
[361300882,1747436989523,-400.0,0.00016438,2]
[361300883,1747436989544,-0.1923113,0.00016438,2]
[361300884,1747436989577,-399.8076887,0.00016438,2]
[361300885,1747436989598,-400.0,0.00016438,2]
[361300886,1747436989621,-591.31,0.00016438,2]
[361300887,1747436989643,-400.0,0.00016438,2]
[361300888,1747436989664,-400.0,0.00016438,2]
[361300889,1747436989685,-400.0,0.00016438,2]
[361300890,1747436989707,-1056.14,0.00016438,2]
[361300891,1747436989728,-400.0,0.00016438,2]
[361300892,1747436989748,-904.96,0.00016438,2]
[361300893,1747436989770,-578.08,0.00016438,2]
[361300894,1747436989792,-400.0,0.00016438,2]
[361300895,1747436989814,-446.86,0.00016438,2]
[361300896,1747436989835,-400.0,0.00016438,2]
[361300897,1747436989858,-1157.74,0.00016438,2]
[361300898,1747436989881,-416.81,0.00016438,2]
[361300899,1747436989903,-400.0,0.00016438,2]
[361300900,1747436989927,-400.0,0.00016438,2]
[361300901,1747436989952,-710.95,0.00016438,2]
[361300902,1747436989976,-137.3423113,0.00016438,2]
[361300903,1747436991032,-262.6576887,0.00016438,2]
[361300904,1747436991057,-695.97,0.00016438,2]
[361300905,1747436991082,-875.55,0.00016438,2]
[361300906,1747436991106,-400.0,0.00016438,2]
[361300907,1747436991129,-1294.25,0.00016438,2]
[361300908,1747436991152,-400.0,0.00016438,2]
[361300909,1747436991174,-285.13427178,0.00016438,2]
[361300910,1747436991195,-400.0,0.00016438,2]
[361300911,1747436991218,-400.0,0.00016438,2]
[361300912,1747436991239,-1346.92,0.00016438,2]
[361300913,1747436991260,-400.0,0.00016438,2]
[361300914,1747436991640,-400.0,0.00016438,2]
[361300915,1747436991665,-400.0,0.00016438,2]
[361300916,1747436991687,-1152.28,0.00016438,2]
[361300917,1747436991710,-400.0,0.00016438,2]
[361300918,1747436991732,-730.83,0.00016438,2]
[361300919,1747436991753,-156.40803952,0.00016438,2]
[361300920,1747436991786,-243.59196048,0.00016438,2]
[361300921,1747436991809,-465.07,0.00016438,2]
[361300922,1747436991838,-1240.01,0.00016438,2]
[361300923,1747436991865,-887.51,0.00016438,2]
[361300924,1747436991887,-400.0,0.00016438,2]
[361300925,1747436991909,-452.0,0.00016438,2]
[361300926,1747436991933,-400.0,0.00016438,2]
[361300927,1747436991954,-400.0,0.00016438,2]
[361300928,1747436991978,-485.75,0.00016438,2]
[361300929,1747436992003,-400.0,0.00016438,2]
[361300930,1747436992026,-400.0,0.00016438,2]
[361300931,1747436992050,-499.42,0.00016438,2]
[361300932,1747436992072,-1155.38,0.00016438,2]
[361300933,1747436992096,-1013.38,0.00016438,2]
[361300934,1747436992119,-438.01,0.00016438,2]
[361300935,1747436992141,-400.0,0.00016438,2]
[361300936,1747436992162,-409.62,0.00016438,2]
[361300937,1747436992185,-310.25803952,0.00016438,2]
[361300938,1747436994078,-522.929756,0.00016416,2]
[361300939,1747436994101,-89.74196048,0.00016438,2]
[361300940,1747436994124,-640.68,0.00016438,2]
[361300941,1747436994146,-1030.8,0.00016438,2]
[361300942,1747436994168,-400.0,0.00016438,2]
[361300943,1747436994190,-908.64,0.00016438,2]
[361300944,1747436994213,-665.31,0.00016438,2]
[361300945,1747436994234,-400.0,0.00016438,2]
[361300946,1747436994256,-1949.77,0.00016438,2]